[Event "Titled Tuesday Blitz June 20 Late 2023"]
[White "Mcconnell, Sullivan"]
[Black "Ismagilov, Damir"]
[WhiteFideId "30934885"]
[BlackFideId "34199982"]
[WhiteElo "2704"]
[BlackElo "2104"]
[Result "0-1"]
[Round "4"]
[TimeControl "180+2"]
[Date "2023.06.20"]
[WhiteClock "0:01:00"]
[BlackClock "0:00:25"]
[Board "57"]

1. e4 {[%clk 0:03:00]}  c5 {[%clk 0:02:52]} 2. Nc3 {[%clk 0:02:59]}  e5 {[%clk 0:02:41]} 3. b3 {[%clk 0:03:00]}  d6 {[%clk 0:02:40]} 4. Nf3 {[%clk 0:02:59]}  Nc6 {[%clk 0:02:41]} 5. Bb5 {[%clk 0:02:59]}  g6 {[%clk 0:02:40]} 6. Nd5 {[%clk 0:02:58]}  Bg7 {[%clk 0:02:37]} 7. c3 {[%clk 0:02:58]}  a6 {[%clk 0:02:30]} 8. Be2 {[%clk 0:02:56]}  Nge7 {[%clk 0:02:30]} 9. Bb2 {[%clk 0:02:54]}  Nxd5 {[%clk 0:02:28]} 10. exd5 {[%clk 0:02:55]}  Ne7 {[%clk 0:02:28]} 11. c4 {[%clk 0:02:55]}  O-O {[%clk 0:02:26]} 12. Qc2 {[%clk 0:02:39]}  Bf5 {[%clk 0:02:15]} 13. d3 {[%clk 0:02:38]}  Bg4 {[%clk 0:01:58]} 14. h3 {[%clk 0:02:37]}  Bxf3 {[%clk 0:01:57]} 15. Bxf3 {[%clk 0:02:38]}  Nf5 {[%clk 0:01:57]} 16. O-O {[%clk 0:02:34]}  Nd4 {[%clk 0:01:54]} 17. Qd1 {[%clk 0:02:35]}  Nxf3+ {[%clk 0:01:23]} 18. Qxf3 {[%clk 0:02:33]}  e4 {[%clk 0:01:24]} 19. Qe2 {[%clk 0:02:33]}  exd3 {[%clk 0:01:24]} 20. Qd2 {[%clk 0:02:34]}  Bxb2 {[%clk 0:01:21]} 21. Qxb2 {[%clk 0:02:35]}  Qg5 {[%clk 0:01:20]} 22. Rad1 {[%clk 0:02:34]}  Rae8 {[%clk 0:01:16]} 23. Rxd3 {[%clk 0:02:34]}  Re4 {[%clk 0:01:12]} 24. Rf3 {[%clk 0:02:32]}  Rfe8 {[%clk 0:01:11]} 25. Qf6 {[%clk 0:02:31]}  Qxf6 {[%clk 0:01:06]} 26. Rxf6 {[%clk 0:02:31]}  Rd8 {[%clk 0:01:07]} 27. Rb1 {[%clk 0:02:29]}  Kg7 {[%clk 0:01:04]} 28. Rf3 {[%clk 0:02:28]}  Rde8 {[%clk 0:01:04]} 29. Rb2 {[%clk 0:02:05]}  Re1+ {[%clk 0:00:59]} 30. Kh2 {[%clk 0:02:05]}  R8e2 {[%clk 0:01:00]} 31. Rxe2 {[%clk 0:02:03]}  Rxe2 {[%clk 0:01:01]} 32. a4 {[%clk 0:02:02]}  f5 {[%clk 0:00:55]} 33. Kg3 {[%clk 0:01:58]}  Kf6 {[%clk 0:00:54]} 34. Re3 {[%clk 0:01:58]}  Rxe3+ {[%clk 0:00:52]} 35. fxe3 {[%clk 0:01:59]}  a5 {[%clk 0:00:46]} 36. Kf4 {[%clk 0:01:55]}  g5+ {[%clk 0:00:46]} 37. Kf3 {[%clk 0:01:56]}  Ke5 {[%clk 0:00:45]} 38. g4 {[%clk 0:01:56]}  h6 {[%clk 0:00:32]} 39. gxf5 {[%clk 0:01:09]}  Kxf5 {[%clk 0:00:33]} 40. e4+ {[%clk 0:01:10]}  Kf6 {[%clk 0:00:31]} 41. Kf2 {[%clk 0:01:09]}  h5 {[%clk 0:00:29]} 42. Kf3 {[%clk 0:01:08]}  Ke5 {[%clk 0:00:29]} 43. Ke3 {[%clk 0:01:07]}  g4 {[%clk 0:00:29]} 44. hxg4 {[%clk 0:01:07]}  hxg4 {[%clk 0:00:30]} 45. Kd3 {[%clk 0:01:07]}  Kf4 {[%clk 0:00:28]} 46. e5 {[%clk 0:01:07]}  Kxe5 {[%clk 0:00:28]} 47. Ke3 {[%clk 0:01:07]}  b6 {[%clk 0:00:26]} 48. Kf2 {[%clk 0:01:07]}  Kf4 {[%clk 0:00:25]} 49. Kg2 {[%clk 0:01:08]}  g3 {[%clk 0:00:25]} 50. Kg1 {[%clk 0:01:08]}  Kf3 {[%clk 0:00:25]} 51. Kf1 {[%clk 0:01:08]}  g2+ {[%clk 0:00:25]} 52. Kg1 {[%clk 0:01:00]}  Kg3 {[%clk 0:00:25]} 0-1


[Site "https://www.chess.com"]

[Event "Titled Tuesday Blitz June 20 Late 2023"]
[White "Diaz Rosas, Julio Cesar"]
[Black "Makridis, Dimitrios"]
[WhiteFideId "5105099"]
[BlackFideId "25864475"]
[WhiteElo "2284"]
[BlackElo "2277"]
[Result "0-1"]
[Round "4"]
[TimeControl "180+2"]
[Date "2023.06.20"]
[WhiteClock "0:00:05"]
[BlackClock "0:01:48"]
[Board "58"]

1. e4 {[%clk 0:03:00]}  e6 {[%clk 0:03:00]} 2. d4 {[%clk 0:02:58]}  d5 {[%clk 0:03:01]} 3. e5 {[%clk 0:02:58]}  c5 {[%clk 0:03:01]} 4. c3 {[%clk 0:02:58]}  Nc6 {[%clk 0:03:00]} 5. Nf3 {[%clk 0:02:57]}  Qb6 {[%clk 0:03:00]} 6. Bd3 {[%clk 0:02:57]}  Bd7 {[%clk 0:02:59]} 7. O-O {[%clk 0:02:57]}  cxd4 {[%clk 0:02:59]} 8. Re1 {[%clk 0:02:58]}  Nge7 {[%clk 0:02:58]} 9. h4 {[%clk 0:02:57]}  h6 {[%clk 0:02:59]} 10. a3 {[%clk 0:02:56]}  g5 {[%clk 0:02:56]} 11. h5 {[%clk 0:02:35]}  Bg7 {[%clk 0:02:54]} 12. cxd4 {[%clk 0:02:22]}  g4 {[%clk 0:02:45]} 13. Nh2 {[%clk 0:02:08]}  g3 {[%clk 0:02:44]} 14. fxg3 {[%clk 0:02:05]}  Bxe5 {[%clk 0:02:40]} 15. Nf3 {[%clk 0:01:53]}  Bxg3 {[%clk 0:02:32]} 16. Rf1 {[%clk 0:01:36]}  Nxd4 {[%clk 0:02:32]} 17. Kh1 {[%clk 0:01:36]}  Ndf5 {[%clk 0:02:27]} 18. Nc3 {[%clk 0:01:33]}  Ne3 {[%clk 0:02:22]} 19. Na4 {[%clk 0:01:12]}  Nxd1 {[%clk 0:02:19]} 20. Nxb6 {[%clk 0:01:11]}  axb6 {[%clk 0:02:20]} 21. Rxd1 {[%clk 0:01:11]}  Nc6 {[%clk 0:02:15]} 22. Be3 {[%clk 0:01:09]}  Ne5 {[%clk 0:02:10]} 23. Bxb6 {[%clk 0:01:00]}  Nxd3 {[%clk 0:02:05]} 24. Rxd3 {[%clk 0:00:59]}  Rc8 {[%clk 0:02:05]} 25. Bd4 {[%clk 0:00:56]}  Rg8 {[%clk 0:02:03]} 26. Be5 {[%clk 0:00:51]}  Bxe5 {[%clk 0:02:01]} 27. Nxe5 {[%clk 0:00:52]}  Rg5 {[%clk 0:02:01]} 28. Re1 {[%clk 0:00:51]}  Rc2 {[%clk 0:02:00]} 29. g4 {[%clk 0:00:40]}  f6 {[%clk 0:01:56]} 30. Nf3 {[%clk 0:00:21]}  Rxg4 {[%clk 0:01:54]} 31. Rb3 {[%clk 0:00:20]}  e5 {[%clk 0:01:48]} 32. Rxb7 {[%clk 0:00:12]}  Bc6 {[%clk 0:01:48]} 33. Rh7 {[%clk 0:00:08]}  d4 {[%clk 0:01:48]} 34. Rf1 {[%clk 0:00:05]}  Rg3 {[%clk 0:01:48]} 0-1


[Site "https://www.chess.com"]

[Event "Titled Tuesday Blitz June 20 Late 2023"]
[White "Petukhov, Dmitry"]
[Black "Cuenca Jimenez, Jose Fernando"]
[WhiteFideId "4142748"]
[BlackFideId "2255570"]
[WhiteElo "2311"]
[BlackElo "2418"]
[Result "0-1"]
[Round "4"]
[TimeControl "180+2"]
[Date "2023.06.20"]
[WhiteClock "0:00:27"]
[BlackClock "0:00:02"]
[Board "59"]

1. e4 {[%clk 0:02:48]}  d6 {[%clk 0:03:00]} 2. d4 {[%clk 0:02:48]}  Nf6 {[%clk 0:03:00]} 3. Nc3 {[%clk 0:02:47]}  e5 {[%clk 0:03:01]} 4. dxe5 {[%clk 0:02:47]}  dxe5 {[%clk 0:03:02]} 5. Qxd8+ {[%clk 0:02:48]}  Kxd8 {[%clk 0:03:02]} 6. f4 {[%clk 0:02:48]}  Bb4 {[%clk 0:03:01]} 7. Bd2 {[%clk 0:02:48]}  Re8 {[%clk 0:02:52]} 8. O-O-O {[%clk 0:02:47]}  c6 {[%clk 0:02:04]} 9. fxe5 {[%clk 0:02:45]}  Ng4 {[%clk 0:02:04]} 10. Nh3 {[%clk 0:02:25]}  Nxe5 {[%clk 0:01:43]} 11. a3 {[%clk 0:02:06]}  Bd6 {[%clk 0:01:05]} 12. Ng5 {[%clk 0:01:47]}  f6 {[%clk 0:01:02]} 13. Nf3 {[%clk 0:01:43]}  Kc7 {[%clk 0:01:02]} 14. Bf4 {[%clk 0:01:43]}  Nbd7 {[%clk 0:00:47]} 15. Be2 {[%clk 0:01:31]}  Nd3+ {[%clk 0:00:47]} 16. Rxd3 {[%clk 0:01:29]}  Bxf4+ {[%clk 0:00:48]} 17. Kb1 {[%clk 0:01:29]}  Nc5 {[%clk 0:00:47]} 18. Rdd1 {[%clk 0:01:29]}  Nxe4 {[%clk 0:00:46]} 19. Nxe4 {[%clk 0:01:30]}  Rxe4 {[%clk 0:00:47]} 20. Bd3 {[%clk 0:01:31]}  Re7 {[%clk 0:00:44]} 21. Bxh7 {[%clk 0:01:30]}  Bg4 {[%clk 0:00:36]} 22. Bd3 {[%clk 0:01:25]}  Rae8 {[%clk 0:00:33]} 23. h3 {[%clk 0:01:24]}  Bd7 {[%clk 0:00:29]} 24. Nh4 {[%clk 0:01:20]}  g5 {[%clk 0:00:26]} 25. Ng6 {[%clk 0:01:19]}  Rg7 {[%clk 0:00:19]} 26. Nxf4 {[%clk 0:01:17]}  gxf4 {[%clk 0:00:20]} 27. Rdf1 {[%clk 0:01:16]}  Rxg2 {[%clk 0:00:18]} 28. Rxf4 {[%clk 0:01:16]}  Re6 {[%clk 0:00:17]} 29. h4 {[%clk 0:01:15]}  Rg8 {[%clk 0:00:07]} 30. h5 {[%clk 0:01:14]}  Rh8 {[%clk 0:00:06]} 31. h6 {[%clk 0:01:14]}  Kd6 {[%clk 0:00:06]} 32. h7 {[%clk 0:01:13]}  Ke7 {[%clk 0:00:04]} 33. Rg1 {[%clk 0:01:13]}  Kf8 {[%clk 0:00:02]} 34. Rfg4 {[%clk 0:01:13]}  Re1+ {[%clk 0:00:02]} 35. Ka2 {[%clk 0:01:01]}  Bxg4 {[%clk 0:00:03]} 36. Rxe1 {[%clk 0:00:59]}  f5 {[%clk 0:00:03]} 37. Re5 {[%clk 0:00:51]}  Rxh7 {[%clk 0:00:02]} 38. Bxf5 {[%clk 0:00:51]}  Rh5 {[%clk 0:00:03]} 39. Ra5 {[%clk 0:00:46]}  Rxf5 {[%clk 0:00:02]} 40. Rxa7 {[%clk 0:00:45]}  Rf7 {[%clk 0:00:03]} 41. Ra8+ {[%clk 0:00:45]}  Ke7 {[%clk 0:00:03]} 42. Rg8 {[%clk 0:00:45]}  Be6+ {[%clk 0:00:03]} 43. b3 {[%clk 0:00:45]}  Kd6 {[%clk 0:00:04]} 44. Rg6 {[%clk 0:00:45]}  Rf2 {[%clk 0:00:04]} 45. Kb2 {[%clk 0:00:45]}  Ke5 {[%clk 0:00:03]} 46. Rg1 {[%clk 0:00:44]}  Bf5 {[%clk 0:00:03]} 47. Rc1 {[%clk 0:00:45]}  Kd4 {[%clk 0:00:03]} 48. b4 {[%clk 0:00:44]}  Kc4 {[%clk 0:00:04]} 49. b5 {[%clk 0:00:39]}  cxb5 {[%clk 0:00:03]} 50. a4 {[%clk 0:00:37]}  bxa4 {[%clk 0:00:03]} 51. Ka3 {[%clk 0:00:38]}  Bxc2 {[%clk 0:00:02]} 52. Re1 {[%clk 0:00:37]}  b5 {[%clk 0:00:02]} 53. Re8 {[%clk 0:00:37]}  b4+ {[%clk 0:00:02]} 54. Kb2 {[%clk 0:00:27]}  Bg6+ {[%clk 0:00:02]} 0-1


[Site "https://www.chess.com"]

[Event "Titled Tuesday Blitz June 20 Late 2023"]
[White "Volkov, Maksim"]
[Black "whiteglovethief"]
[WhiteFideId "54123070"]
[WhiteElo "2295"]
[BlackElo "2521"]
[Result "1-0"]
[Round "4"]
[TimeControl "180+2"]
[Date "2023.06.20"]
[WhiteClock "0:01:25"]
[BlackClock "0:00:13"]
[Board "60"]

1. d4 {[%clk 0:03:00]}  Nf6 {[%clk 0:02:59]} 2. c4 {[%clk 0:03:00]}  g6 {[%clk 0:02:59]} 3. g3 {[%clk 0:03:00]}  Bg7 {[%clk 0:03:00]} 4. Bg2 {[%clk 0:03:01]}  d6 {[%clk 0:03:01]} 5. Nc3 {[%clk 0:03:01]}  O-O {[%clk 0:03:02]} 6. Nf3 {[%clk 0:03:02]}  Nbd7 {[%clk 0:03:02]} 7. O-O {[%clk 0:03:02]}  e5 {[%clk 0:03:03]} 8. e4 {[%clk 0:03:02]}  c6 {[%clk 0:03:02]} 9. h3 {[%clk 0:03:02]}  Qc7 {[%clk 0:03:00]} 10. Be3 {[%clk 0:03:01]}  Re8 {[%clk 0:02:59]} 11. Qc2 {[%clk 0:03:01]}  a6 {[%clk 0:02:57]} 12. Rad1 {[%clk 0:02:52]}  exd4 {[%clk 0:02:57]} 13. Nxd4 {[%clk 0:02:52]}  h5 {[%clk 0:02:57]} 14. Rfe1 {[%clk 0:02:51]}  h4 {[%clk 0:02:57]} 15. gxh4 {[%clk 0:02:48]}  Nh5 {[%clk 0:02:51]} 16. b3 {[%clk 0:02:39]}  Qd8 {[%clk 0:02:36]} 17. Nf3 {[%clk 0:02:27]}  Ne5 {[%clk 0:02:35]} 18. Ng5 {[%clk 0:02:19]}  f6 {[%clk 0:02:27]} 19. Nf3 {[%clk 0:02:18]}  f5 {[%clk 0:02:18]} 20. Bg5 {[%clk 0:02:13]}  Qc7 {[%clk 0:02:14]} 21. Nd4 {[%clk 0:02:03]}  f4 {[%clk 0:02:07]} 22. Nf3 {[%clk 0:01:57]}  Nxf3+ {[%clk 0:02:00]} 23. Bxf3 {[%clk 0:01:58]}  Bxh3 {[%clk 0:02:00]} 24. Kh2 {[%clk 0:01:59]}  Qd7 {[%clk 0:01:54]} 25. Rg1 {[%clk 0:01:50]}  Kh8 {[%clk 0:01:45]} 26. c5 {[%clk 0:01:43]}  d5 {[%clk 0:01:41]} 27. exd5 {[%clk 0:01:42]}  Bf5 {[%clk 0:01:41]} 28. Qc1 {[%clk 0:01:42]}  cxd5 {[%clk 0:01:30]} 29. Nxd5 {[%clk 0:01:42]}  Qf7 {[%clk 0:01:22]} 30. Nb6 {[%clk 0:01:37]}  Rad8 {[%clk 0:01:21]} 31. Nc4 {[%clk 0:01:37]}  Rxd1 {[%clk 0:01:07]} 32. Qxd1 {[%clk 0:01:37]}  Qc7 {[%clk 0:00:55]} 33. Nd6 {[%clk 0:01:36]}  Re7 {[%clk 0:00:46]} 34. Bxh5 {[%clk 0:01:34]}  f3 {[%clk 0:00:38]} 35. Bxe7 {[%clk 0:01:30]}  Qxe7 {[%clk 0:00:38]} 36. Nxf5 {[%clk 0:01:25]}  gxf5 {[%clk 0:00:13]} 37. Kh3 {[%clk 0:01:25]} 1-0


[Site "https://www.chess.com"]

[Event "Titled Tuesday Blitz June 20 Late 2023"]
[White "Danielyan, Vahe"]
[Black "Tifferet, Shaked"]
[WhiteFideId "13304828"]
[BlackFideId "2811529"]
[WhiteElo "2423"]
[BlackElo "2142"]
[Result "1-0"]
[Round "4"]
[TimeControl "180+2"]
[Date "2023.06.20"]
[WhiteClock "0:02:04"]
[BlackClock "0:00:01"]
[Board "63"]

1. e4 {[%clk 0:03:00]}  c5 {[%clk 0:02:59]} 2. b4 {[%clk 0:02:59]}  b6 {[%clk 0:02:55]} 3. bxc5 {[%clk 0:02:59]}  bxc5 {[%clk 0:02:56]} 4. Nc3 {[%clk 0:03:00]}  Bb7 {[%clk 0:02:57]} 5. Nf3 {[%clk 0:03:00]}  g6 {[%clk 0:02:57]} 6. Bc4 {[%clk 0:02:58]}  Bg7 {[%clk 0:02:57]} 7. O-O {[%clk 0:02:58]}  e6 {[%clk 0:02:53]} 8. Nb5 {[%clk 0:02:55]}  d5 {[%clk 0:02:33]} 9. e5 {[%clk 0:02:52]}  Bc6 {[%clk 0:01:30]} 10. Nd6+ {[%clk 0:02:51]}  Kf8 {[%clk 0:01:30]} 11. Bb5 {[%clk 0:02:45]}  Ne7 {[%clk 0:01:07]} 12. Ba3 {[%clk 0:02:44]}  Bxb5 {[%clk 0:00:58]} 13. Nxb5 {[%clk 0:02:40]}  Nd7 {[%clk 0:00:57]} 14. Nd6 {[%clk 0:02:25]}  Nxe5 {[%clk 0:00:52]} 15. Bxc5 {[%clk 0:02:22]}  Qc7 {[%clk 0:00:36]} 16. Ba3 {[%clk 0:02:17]}  Rd8 {[%clk 0:00:20]} 17. d4 {[%clk 0:02:14]}  Nxf3+ {[%clk 0:00:19]} 18. Qxf3 {[%clk 0:02:14]}  Rxd6 {[%clk 0:00:20]} 19. Bxd6 {[%clk 0:02:13]}  Qxd6 {[%clk 0:00:21]} 20. c3 {[%clk 0:02:09]}  Nf5 {[%clk 0:00:15]} 21. Rab1 {[%clk 0:02:10]}  Bf6 {[%clk 0:00:15]} 22. g4 {[%clk 0:02:08]}  Bxd4 {[%clk 0:00:08]} 23. cxd4 {[%clk 0:02:06]}  Nxd4 {[%clk 0:00:04]} 24. Qf6 {[%clk 0:02:06]}  Ne2+ {[%clk 0:00:04]} 25. Kh1 {[%clk 0:02:06]}  Rg8 {[%clk 0:00:03]} 26. Rb7 {[%clk 0:02:04]}  d4 {[%clk 0:00:01]} 27. Qxf7# {[%clk 0:02:04]} 1-0


[Site "https://www.chess.com"]

[Event "Titled Tuesday Blitz June 20 Late 2023"]
[White "Papayan, Oleg"]
[Black "Bolourchifard, Farzad"]
[WhiteFideId "4193911"]
[BlackFideId "12510084"]
[WhiteElo "2167"]
[BlackElo "2317"]
[Result "0-1"]
[Round "4"]
[TimeControl "180+2"]
[Date "2023.06.20"]
[WhiteClock "0:00:01"]
[BlackClock "0:00:23"]
[Board "64"]

1. e4 {[%clk 0:03:00]}  e5 {[%clk 0:03:00]} 2. Nf3 {[%clk 0:03:01]}  Nc6 {[%clk 0:02:59]} 3. Bb5 {[%clk 0:03:01]}  a6 {[%clk 0:02:58]} 4. Bxc6 {[%clk 0:03:01]}  dxc6 {[%clk 0:02:59]} 5. O-O {[%clk 0:03:02]}  f6 {[%clk 0:02:59]} 6. d4 {[%clk 0:03:02]}  exd4 {[%clk 0:03:00]} 7. Nxd4 {[%clk 0:03:02]}  c5 {[%clk 0:03:01]} 8. Nb3 {[%clk 0:03:02]}  Qxd1 {[%clk 0:03:02]} 9. Rxd1 {[%clk 0:03:03]}  Bd7 {[%clk 0:03:02]} 10. Bf4 {[%clk 0:03:02]}  O-O-O {[%clk 0:03:02]} 11. Nc3 {[%clk 0:03:03]}  Bc6 {[%clk 0:02:58]} 12. Nd5 {[%clk 0:02:39]}  Bd6 {[%clk 0:02:43]} 13. Bxd6 {[%clk 0:02:13]}  cxd6 {[%clk 0:02:43]} 14. Na5 {[%clk 0:01:57]}  Bxd5 {[%clk 0:02:42]} 15. Rxd5 {[%clk 0:01:52]}  Ne7 {[%clk 0:02:43]} 16. Rd3 {[%clk 0:01:47]}  Kc7 {[%clk 0:02:40]} 17. Rad1 {[%clk 0:01:36]}  Rd7 {[%clk 0:02:22]} 18. Nc4 {[%clk 0:01:32]}  Rhd8 {[%clk 0:02:19]} 19. Ne3 {[%clk 0:01:33]}  b5 {[%clk 0:02:02]} 20. c4 {[%clk 0:01:24]}  Nc6 {[%clk 0:01:56]} 21. Nd5+ {[%clk 0:01:12]}  Kb7 {[%clk 0:01:54]} 22. cxb5 {[%clk 0:01:13]}  axb5 {[%clk 0:01:55]} 23. Rb3 {[%clk 0:01:11]}  Nd4 {[%clk 0:01:53]} 24. Rh3 {[%clk 0:00:49]}  Ra8 {[%clk 0:01:38]} 25. Rxh7 {[%clk 0:00:45]}  Rxa2 {[%clk 0:01:37]} 26. Nxf6 {[%clk 0:00:45]}  Rf7 {[%clk 0:01:26]} 27. Ne8 {[%clk 0:00:39]}  Kc6 {[%clk 0:01:26]} 28. Rxg7 {[%clk 0:00:39]}  Rf8 {[%clk 0:00:52]} 29. Nc7 {[%clk 0:00:36]}  Rxb2 {[%clk 0:00:50]} 30. Nd5 {[%clk 0:00:37]}  b4 {[%clk 0:00:44]} 31. h4 {[%clk 0:00:07]}  Rbxf2 {[%clk 0:00:39]} 32. h5 {[%clk 0:00:08]}  Ne2+ {[%clk 0:00:36]} 33. Kh2 {[%clk 0:00:08]}  Rh8 {[%clk 0:00:34]} 34. Ne7+ {[%clk 0:00:02]}  Kb5 {[%clk 0:00:33]} 35. Rg5 {[%clk 0:00:01]}  Rf4 {[%clk 0:00:30]} 36. Nf5 {[%clk 0:00:01]}  Rf8 {[%clk 0:00:24]} 37. Nxd6+ {[%clk 0:00:02]}  Kc6 {[%clk 0:00:23]} 38. Nf5 {[%clk 0:00:02]}  R8xf5 {[%clk 0:00:23]} 39. Rxf5 {[%clk 0:00:01]}  Rh4# {[%clk 0:00:23]} 0-1


[Site "https://www.chess.com"]

[Event "Titled Tuesday Blitz June 20 Late 2023"]
[White "Czerw, Dawid"]
[Black "Rastbod, Ali"]
[WhiteFideId "1145746"]
[BlackFideId "12567477"]
[WhiteElo "2144"]
[BlackElo "2281"]
[Result "1-0"]
[Round "4"]
[TimeControl "180+2"]
[Date "2023.06.20"]
[WhiteClock "0:00:04"]
[BlackClock "0:00:00"]
[Board "66"]

1. e4 {[%clk 0:03:00]}  e6 {[%clk 0:02:59]} 2. d4 {[%clk 0:03:00]}  d5 {[%clk 0:03:00]} 3. Nc3 {[%clk 0:03:01]}  Nf6 {[%clk 0:03:00]} 4. Bg5 {[%clk 0:03:00]}  dxe4 {[%clk 0:02:59]} 5. Nxe4 {[%clk 0:03:00]}  Be7 {[%clk 0:03:00]} 6. Bxf6 {[%clk 0:03:01]}  gxf6 {[%clk 0:03:00]} 7. Nf3 {[%clk 0:03:01]}  f5 {[%clk 0:03:00]} 8. Nc3 {[%clk 0:03:01]}  a6 {[%clk 0:03:01]} 9. g3 {[%clk 0:03:02]}  b5 {[%clk 0:03:00]} 10. Bg2 {[%clk 0:03:02]}  Bb7 {[%clk 0:03:01]} 11. O-O {[%clk 0:03:02]}  O-O {[%clk 0:02:54]} 12. Ne2 {[%clk 0:02:56]}  c5 {[%clk 0:02:53]} 13. Nf4 {[%clk 0:02:43]}  cxd4 {[%clk 0:02:31]} 14. Nxd4 {[%clk 0:02:31]}  Bxg2 {[%clk 0:02:22]} 15. Kxg2 {[%clk 0:02:30]}  Bf6 {[%clk 0:02:22]} 16. Qf3 {[%clk 0:02:17]}  Ra7 {[%clk 0:02:22]} 17. Rad1 {[%clk 0:01:52]}  Bxd4 {[%clk 0:01:59]} 18. c3 {[%clk 0:01:50]}  Rd7 {[%clk 0:01:56]} 19. cxd4 {[%clk 0:01:48]}  Rxd4 {[%clk 0:01:57]} 20. Nh5 {[%clk 0:01:40]}  Rxd1 {[%clk 0:01:45]} 21. Rxd1 {[%clk 0:01:40]}  Qg5 {[%clk 0:01:46]} 22. h4 {[%clk 0:01:35]}  Qg6 {[%clk 0:01:41]} 23. Rd6 {[%clk 0:01:21]}  h6 {[%clk 0:01:33]} 24. Qd1 {[%clk 0:01:04]}  Kh7 {[%clk 0:01:12]} 25. Rb6 {[%clk 0:00:54]}  f4 {[%clk 0:01:02]} 26. Nxf4 {[%clk 0:00:47]}  Qe4+ {[%clk 0:01:03]} 27. Qf3 {[%clk 0:00:34]}  Qxf3+ {[%clk 0:01:02]} 28. Kxf3 {[%clk 0:00:34]}  Rc8 {[%clk 0:01:02]} 29. Nd3 {[%clk 0:00:28]}  Kg7 {[%clk 0:00:56]} 30. Ne5 {[%clk 0:00:23]}  h5 {[%clk 0:00:44]} 31. Ke4 {[%clk 0:00:22]}  a5 {[%clk 0:00:32]} 32. f4 {[%clk 0:00:20]}  b4 {[%clk 0:00:30]} 33. Rb7 {[%clk 0:00:19]}  Na6 {[%clk 0:00:26]} 34. Rxf7+ {[%clk 0:00:18]}  Kg8 {[%clk 0:00:26]} 35. Ra7 {[%clk 0:00:13]}  Nc5+ {[%clk 0:00:26]} 36. Ke3 {[%clk 0:00:13]}  Na4 {[%clk 0:00:24]} 37. b3 {[%clk 0:00:09]}  Nb6 {[%clk 0:00:24]} 38. Rxa5 {[%clk 0:00:08]}  Nd5+ {[%clk 0:00:25]} 39. Kd4 {[%clk 0:00:07]}  Rc1 {[%clk 0:00:25]} 40. Ra6 {[%clk 0:00:06]}  Rd1+ {[%clk 0:00:22]} 41. Kc5 {[%clk 0:00:06]}  Nc7 {[%clk 0:00:14]} 42. Ra7 {[%clk 0:00:05]}  Ne8 {[%clk 0:00:12]} 43. Re7 {[%clk 0:00:05]}  Ng7 {[%clk 0:00:10]} 44. Nc6 {[%clk 0:00:03]}  Kf8 {[%clk 0:00:09]} 45. Rc7 {[%clk 0:00:02]}  Nf5 {[%clk 0:00:06]} 46. Nxb4 {[%clk 0:00:03]}  Nxg3 {[%clk 0:00:05]} 47. Kb6 {[%clk 0:00:03]}  Nf5 {[%clk 0:00:05]} 48. a4 {[%clk 0:00:04]}  Nxh4 {[%clk 0:00:05]} 49. a5 {[%clk 0:00:04]}  Ra1 {[%clk 0:00:05]} 50. a6 {[%clk 0:00:05]}  Ng6 {[%clk 0:00:06]} 51. a7 {[%clk 0:00:05]}  h4 {[%clk 0:00:00]} 52. Na6 {[%clk 0:00:04]} 1-0


[Site "https://www.chess.com"]

[Event "Titled Tuesday Blitz June 20 Late 2023"]
[White "Martins, Bruno Andre Leite"]
[Black "Urbina Perez, Juan Antonio"]
[WhiteFideId "1942255"]
[BlackFideId "2217368"]
[WhiteElo "2241"]
[BlackElo "2197"]
[Result "0-1"]
[Round "4"]
[TimeControl "180+2"]
[Date "2023.06.20"]
[WhiteClock "0:00:01"]
[BlackClock "0:00:16"]
[Board "67"]

1. e4 {[%clk 0:03:00]}  e5 {[%clk 0:02:59]} 2. Nf3 {[%clk 0:02:46]}  Nf6 {[%clk 0:02:58]} 3. Nxe5 {[%clk 0:02:44]}  d6 {[%clk 0:02:58]} 4. Nf3 {[%clk 0:02:45]}  Nxe4 {[%clk 0:02:58]} 5. d3 {[%clk 0:02:34]}  Nf6 {[%clk 0:02:58]} 6. d4 {[%clk 0:02:35]}  d5 {[%clk 0:02:58]} 7. Bd3 {[%clk 0:02:35]}  Bd6 {[%clk 0:02:59]} 8. O-O {[%clk 0:02:34]}  O-O {[%clk 0:02:59]} 9. Bg5 {[%clk 0:02:32]}  Bg4 {[%clk 0:02:55]} 10. h3 {[%clk 0:02:28]}  Bh5 {[%clk 0:02:53]} 11. g4 {[%clk 0:02:26]}  Bg6 {[%clk 0:02:52]} 12. Ne5 {[%clk 0:02:25]}  Nbd7 {[%clk 0:02:35]} 13. f4 {[%clk 0:02:06]}  Bxd3 {[%clk 0:02:24]} 14. Qxd3 {[%clk 0:01:49]}  c6 {[%clk 0:02:24]} 15. Nxd7 {[%clk 0:01:44]}  Qxd7 {[%clk 0:02:24]} 16. Bxf6 {[%clk 0:01:44]}  gxf6 {[%clk 0:02:25]} 17. Nd2 {[%clk 0:01:41]}  Rae8 {[%clk 0:02:26]} 18. Qf3 {[%clk 0:01:03]}  Re7 {[%clk 0:02:20]} 19. Rfe1 {[%clk 0:01:02]}  Rfe8 {[%clk 0:02:21]} 20. Rxe7 {[%clk 0:01:03]}  Qxe7 {[%clk 0:02:20]} 21. Kf2 {[%clk 0:00:36]}  Qc7 {[%clk 0:02:20]} 22. g5 {[%clk 0:00:23]}  fxg5 {[%clk 0:02:15]} 23. fxg5 {[%clk 0:00:24]}  Qb6 {[%clk 0:02:06]} 24. Nb3 {[%clk 0:00:21]}  a5 {[%clk 0:02:02]} 25. Qc3 {[%clk 0:00:14]}  Bb4 {[%clk 0:01:56]} 26. Qd3 {[%clk 0:00:13]}  Re4 {[%clk 0:01:48]} 27. c3 {[%clk 0:00:13]}  Rf4+ {[%clk 0:01:37]} 28. Ke3 {[%clk 0:00:08]}  Re4+ {[%clk 0:01:33]} 29. Kd2 {[%clk 0:00:08]}  a4 {[%clk 0:01:21]} 30. Nc1 {[%clk 0:00:06]}  Be7 {[%clk 0:01:14]} 31. Kc2 {[%clk 0:00:07]}  Qc7 {[%clk 0:01:07]} 32. Qd2 {[%clk 0:00:07]}  Qg3 {[%clk 0:01:03]} 33. Nd3 {[%clk 0:00:06]}  Bxg5 {[%clk 0:01:00]} 34. Qd1 {[%clk 0:00:04]}  Qg2+ {[%clk 0:00:49]} 35. Kb1 {[%clk 0:00:05]}  Qxh3 {[%clk 0:00:43]} 36. a3 {[%clk 0:00:05]}  Re3 {[%clk 0:00:42]} 37. Nc5 {[%clk 0:00:03]}  b6 {[%clk 0:00:39]} 38. Nxa4 {[%clk 0:00:02]}  Rd3 {[%clk 0:00:30]} 39. Qc2 {[%clk 0:00:02]}  Rd2 {[%clk 0:00:29]} 40. Qb3 {[%clk 0:00:02]}  b5 {[%clk 0:00:24]} 41. Nc5 {[%clk 0:00:01]}  Qf5+ {[%clk 0:00:19]} 42. Ka2 {[%clk 0:00:02]}  h5 {[%clk 0:00:19]} 43. Rh1 {[%clk 0:00:02]}  h4 {[%clk 0:00:19]} 44. a4 {[%clk 0:00:03]}  bxa4 {[%clk 0:00:17]} 45. Qb8+ {[%clk 0:00:02]}  Kg7 {[%clk 0:00:18]} 46. Qh2 {[%clk 0:00:01]}  Rxh2 {[%clk 0:00:16]} 0-1


[Site "https://www.chess.com"]